bitfinex-derivatives/quotes_ETHF0:USTF0_20250130
["timestamp","ask_amount","ask_price","bid_price","bid_amount"]
[1738196530263,0.6428,3111.5,3111.4,0.64281]
[1738196530457,1.1929,3111.6,3111.3,0.64285]
[1738196530662,1.1929,3111.6,3111.4,0.64282]
[1738196530860,0.6428,3111.5,3111.4,0.64282]
[1738196531053,0.6428,3111.5,3111.3,0.64284]
[1738196531255,0.64287,3111.2,3111.1,0.00482618]
[1738196533761,3.30669406,3111.2,3111.1,0.00482618]
[1738196533957,7.66382406,3111.2,3110.2,0.5456]
[1738196534156,0.64302,3110.5,3110.2,1.18867]
[1738196534758,0.64301,3110.5,3110.2,0.5456]
[1738196535064,0.64309,3110.2,3110.0,0.00482618]
[1738196536368,0.5406,3110.4,3110.0,0.64793618]
[1738196536571,0.64306,3110.3,3110.0,0.64793618]
[1738196537561,0.64309,3110.1,3110.0,0.00482618]
[1738196542477,6.436,3110.1,3109.1,3.2078]
[1738196542667,3.2078,3109.6,3109.1,3.85109]
[1738196542970,0.64325,3109.4,3109.1,3.2078]
[1738196543172,1.66303,3109.5,3109.1,3.85109]
[1738196543373,1.66303,3109.5,3109.2,0.64328]
[1738196543570,1.66303,3109.5,3109.1,3.85109]
[1738196544575,1.0198,3109.5,3109.2,0.64328]
[1738196544974,0.4994,3109.5,3109.2,0.64328]
[1738196545378,1.14262,3109.5,3109.2,0.64328]
[1738196546277,0.4994,3109.5,3109.2,0.64328]
[1738196546678,1.14262,3109.5,3109.2,0.64328]
[1738196547475,0.64328,3109.2,3109.1,3.2078]
[1738196547773,0.64324,3109.4,3109.1,3.85109]
[1738196547974,0.64327,3109.3,3109.1,3.2078]
[1738196548669,0.64326,3109.4,3109.1,3.8511]
[1738196548870,0.64326,3109.3,3109.1,3.2078]
[1738196549073,0.4994,3109.5,3109.1,3.2078]
[1738196549471,0.64324,3109.4,3109.1,3.2078]
[1738196549774,0.64324,3109.4,3109.1,3.8511]
[1738196549978,0.4994,3109.5,3109.1,3.8511]
[1738196550174,0.64326,3109.3,3109.1,3.8511]
[1738196550567,0.64325,3109.4,3109.2,0.64328]
[1738196550776,1.14263,3109.5,3109.2,0.64328]
[1738196550975,0.64324,3109.4,3109.2,0.64328]
[1738196552179,0.64324,3109.4,3109.1,3.2078]
[1738196552476,0.64324,3109.4,3109.2,0.64328]
[1738196552973,0.4994,3109.5,3109.1,3.2078]
[1738196553271,3.2078,3109.6,3109.5,0.64322]
[1738196554884,3.2078,3109.6,3109.2,0.5174]
[1738196554885,3.2078,3109.6,3109.4,0.64323]
[1738196555380,3.85101,3109.6,3109.3,0.64324]
[1738196555974,3.85101,3109.6,3109.4,0.64324]
[1738196556282,3.85101,3109.6,3109.2,0.5174]
[1738196556484,3.85101,3109.6,3109.4,0.64324]
[1738196557182,3.2078,3109.6,3109.3,0.5299]
[1738196557385,0.64324,3109.4,3109.3,0.5299]
[1738196558287,0.64323,3109.5,3109.3,1.17315]
[1738196560287,3.2078,3109.6,3109.3,1.17315]
[1738196560487,0.64322,3109.5,3109.3,1.17315]
[1738196560684,3.2078,3109.6,3109.3,0.5299]
[1738196560890,3.2078,3109.6,3109.5,0.64322]
[1738196561288,3.2078,3110.1,3109.9,0.64312]
[1738196561586,3.2078,3110.1,3110.0,1.68061]
[1738196562584,3.2078,3110.1,3110.0,1.0375]
[1738196562991,3.2078,3110.1,3110.0,1.68061]
[1738196564885,3.2078,3110.1,3110.0,1.68061]
[1738196565691,3.85089,3110.1,3110.0,0.514]
[1738196567697,3.2078,3110.1,3110.0,0.514]
[1738196567889,3.85089,3110.1,3110.0,0.514]
[1738196569796,0.64313,3109.9,3109.8,1.0226]
[1738196571195,0.64313,3110.0,3109.8,1.66575]
[1738196571390,0.64313,3110.0,3109.8,1.0226]
[1738196571590,0.64313,3110.0,3109.8,1.66575]
[1738196573693,3.2078,3110.1,3109.5,0.5254]
[1738196573900,0.64317,3109.8,3109.5,1.1686]
[1738196574196,0.5335,3109.9,3109.5,0.5254]
[1738196574499,1.17664,3109.9,3109.7,0.64316]
[1738196574691,0.64316,3109.8,3109.6,0.64319]
[1738196575491,0.5335,3109.9,3109.5,0.5254]
[1738196575694,3.2078,3109.6,3109.0,0.00482618]
[1738196575896,0.64327,3109.3,3109.1,0.64329]
[1738196576689,19.4329,3109.5,3109.0,0.00482618]
[1738196576894,0.6433,3109.1,3109.0,0.00482618]
[1738196577393,1.1613,3109.1,3109.0,0.00482618]
[1738196582905,3.70012406,3109.1,3108.6,3.2078]
[1738196583113,3.85117,3108.8,3108.4,0.64343]
[1738196583611,3.85117,3108.8,3108.5,0.64342]
[1738196584008,3.2078,3108.8,3108.3,0.5106]
[1738196584310,3.2078,3108.8,3108.7,0.64338]
[1738196588711,3.2078,3108.8,3108.3,1.03232618]
[1738196589120,0.64341,3108.6,3108.3,1.15888618]
[1738196589414,0.523,3108.5,3108.3,1.15888618]
[1738196589914,1.0503,3108.5,3108.3,1.15888618]
[1738196590119,1.0503,3108.5,3108.3,0.00482618]
[1738196590517,0.523,3108.5,3108.4,0.64344]
[1738196591605,0.64339,3108.7,3108.4,0.64344]
[1738196592009,4.2581,3108.8,3108.3,0.00482618]
[1738196592217,4.90147,3108.8,3108.6,0.6434]
[1738196592715,4.90147,3108.8,3108.5,0.64341]
[1738196593105,4.90147,3108.8,3108.7,0.64338]
[1738196593106,3.2078,3108.8,3108.7,0.64338]
[1738196593519,0.00482618,3109.0,3108.9,0.64334]
[1738196593819,0.00482618,3109.0,3108.9,3.30716406]
[1738196595421,0.6432,3109.6,3108.9,2.66382406]
[1738196595611,0.6432,3109.6,3109.4,0.64322]
[1738196596120,1.0036,3109.9,3108.9,2.66382406]
[1738196596322,0.64317,3109.8,3109.6,0.6432]
[1738196597916,0.64317,3109.8,3109.2,1.0354]
[1738196598113,1.0036,3109.9,3109.2,1.0354]
[1738196598314,3.2078,3109.7,3109.2,1.0354]
[1738196598513,3.85098,3109.7,3109.4,0.64323]
[1738196598929,3.2078,3109.7,3109.5,0.64321]
[1738196599624,3.85098,3109.7,3109.5,0.64321]
[1738196600217,2.66382406,3109.6,3108.3,5.87645024]
[1738196600419,3.2078,3109.2,3108.4,1.5552]
[1738196600609,0.64338,3108.8,3108.5,0.64341]
[1738196601420,0.64334,3109.0,3108.6,0.64339]
[1738196601622,0.64334,3109.0,3108.4,1.5552]
[1738196601623,0.64333,3109.0,3108.7,0.64337]
[1738196602824,1.0584,3109.1,3108.7,0.64337]
[1738196603125,0.64335,3108.9,3108.4,1.5552]
[1738196603524,0.64335,3108.9,3108.6,0.64339]
[1738196603821,1.0584,3109.1,3108.6,0.64339]
[1738196604126,0.64336,3108.8,3108.6,0.64339]
[1738196604329,0.64335,3108.9,3108.6,0.64339]
[1738196606324,3.85109,3109.2,3108.9,0.64333]
[1738196606523,0.64327,3109.3,3108.6,2.66382406]
[1738196606823,1.14995,3109.4,3109.1,0.64329]
[1738196607225,1.14995,3109.4,3108.6,2.66382406]
[1738196607428,3.2078,3109.6,3108.9,2.66382406]
[1738196607617,0.64327,3109.3,3109.0,1.69151]
[1738196608225,0.5033,3109.5,3109.0,1.0482]
[1738196608429,1.14653,3109.5,3109.3,0.64326]
[1738196608727,0.5033,3109.5,3109.1,0.5244]
[1738196608925,0.64324,3109.4,3109.1,0.5244]
[1738196609123,0.64333,3109.0,3108.7,0.64337]
[1738196609330,0.5236,3109.3,3108.7,0.5427]
[1738196609724,0.64328,3109.2,3108.8,0.64335]
[1738196609926,0.64331,3109.1,3108.8,0.64335]
[1738196610728,0.64329,3109.2,3108.9,0.64333]
[1738196610929,1.16687,3109.3,3109.0,0.64331]
[1738196611128,1.16687,3109.3,3108.7,0.5427]
[1738196611129,0.64327,3109.3,3109.1,0.64329]
[1738196611333,0.5033,3109.5,3109.2,1.14467]
[1738196611529,1.14653,3109.5,3109.2,0.5014]
[1738196611836,1.14653,3109.5,3109.2,1.14466]
[1738196612033,1.14653,3109.5,3109.2,0.5014]
[1738196612232,1.14653,3109.5,3109.3,0.64325]
[1738196612436,1.14653,3109.5,3109.2,1.14467]
[1738196613432,0.5033,3109.5,3109.2,0.5014]
[1738196613730,0.5033,3109.5,3109.3,1.15825]
[1738196613928,0.5033,3109.5,3109.3,1.68645]
[1738196614133,3.2078,3109.6,3109.3,1.68645]
[1738196614333,3.2078,3109.6,3109.5,0.64322]
[1738196614526,3.2078,3109.6,3109.4,0.64323]
[1738196614927,3.2078,3109.6,3109.5,0.64322]
[1738196615841,0.00482618,3110.0,3109.9,0.64313]
[1738196616732,0.5548,3110.7,3110.6,0.64299]
[1738196617032,0.5548,3110.7,3109.9,8.85093]
[1738196617033,18.9,3111.4,3110.4,5.87162406]
[1738196617333,1.5882,3111.5,3110.4,5.87162406]
[1738196617532,1.0735,3111.5,3111.0,0.6429]
[1738196617729,4.2813,3111.5,3110.7,2.66382406]
[1738196618031,4.2813,3111.5,3110.9,0.00482618]
[1738196618233,3.2078,3111.1,3110.9,0.00482618]
[1738196619033,0.64291,3111.0,3110.9,0.00482618]
[1738196619840,3.8507,3111.1,3110.9,0.00482618]
[1738196620541,3.2078,3111.1,3110.9,0.00482618]
[1738196621033,3.85069,3111.1,3110.9,0.00482618]
[1738196621740,0.64291,3111.0,3110.9,0.00482618]
[1738196621939,1.17601,3111.0,3110.9,0.00482618]
[1738196622141,0.5331,3111.0,3109.8,1.0141]
[1738196622439,0.64304,3110.4,3109.9,0.64312]
[1738196622637,0.6431,3110.1,3109.8,0.5108]
[1738196623441,19.4502,3110.3,3109.6,0.5167]
[1738196623442,22.11402406,3110.3,3109.6,0.52152618]
[1738196623637,3.2078,3110.1,3109.6,0.00482618]
[1738196623839,0.64315,3109.9,3109.6,0.00482618]
[1738196624140,0.64314,3109.9,3109.6,0.64801618]
[1738196624541,3.2078,3110.1,3109.6,0.64801618]
[1738196624742,0.64317,3109.8,3109.6,0.00482618]
[1738196624943,3.2078,3110.1,3109.6,0.00482618]
[1738196625145,0.64315,3109.9,3109.6,0.64801618]
[1738196625345,0.00482618,3110.0,3109.6,0.64801618]
[1738196625545,0.64316,3109.8,3109.6,0.64801618]
[1738196626845,0.64318,3109.7,3109.6,0.00482618]
[1738196630039,3.85098,3109.7,3109.6,0.00482618]
[1738196631143,3.2078,3109.7,3109.6,0.00482618]
[1738196631350,3.2078,3109.7,3109.6,0.64802618]
[1738196632550,3.2078,3109.7,3109.6,0.00482618]
[1738196632748,3.85098,3109.7,3109.6,0.00482618]
[1738196632943,3.2078,3109.7,3109.6,0.00482618]
[1738196633745,3.85098,3109.7,3109.6,0.00482618]
[1738196634050,3.2078,3109.7,3109.6,0.00482618]
[1738196635243,3.2078,3109.7,3109.6,0.64802618]
[1738196635641,3.2078,3109.7,3109.6,0.00482618]
[1738196636943,3.2078,3109.7,3109.6,0.64802618]
[1738196637254,3.2078,3109.7,3109.6,0.00482618]
[1738196640456,3.2078,3109.7,3109.6,0.64802618]
[1738196640649,3.2078,3109.7,3109.6,0.00482618]
[1738196640852,3.85098,3109.7,3109.6,0.00482618]
[1738196641053,5.87162406,3109.7,3109.1,3.2078]
[1738196641250,0.64331,3109.1,3108.8,0.64335]
[1738196641444,3.2078,3109.3,3108.7,1.0824]
[1738196641749,3.2078,3109.3,3108.6,0.513]
[1738196641750,0.64339,3108.7,3108.3,3.2078]
[1738196641950,0.64342,3108.6,3108.3,3.85126]
[1738196642244,0.64343,3108.5,3108.1,1.18969]
[1738196642450,1.19451,3108.6,3108.2,0.64347]
[1738196643351,0.64349,3108.2,3108.1,0.00482618]
[1738196643657,3.30731406,3108.2,3108.1,0.00482618]
[1738196644556,3.85781406,3108.2,3108.1,0.00482618]
[1738196645758,5.28281406,3108.2,3108.1,0.00482618]
[1738196649158,8.49061406,3108.2,3108.1,0.00482618]
[1738196650760,7.06561406,3108.2,3108.1,0.00482618]
[1738196650956,3.2078,3108.2,3108.1,0.00482618]
[1738196651159,4.39129,3108.7,3108.1,0.00482618]
[1738196651358,3.7479,3108.7,3108.1,0.00482618]
[1738196651558,0.64348,3108.3,3108.1,0.00482618]
[1738196651755,3.85129,3108.2,3108.1,0.00482618]
[1738196652061,3.2078,3108.2,3108.1,0.00482618]
[1738196655561,3.2078,3108.2,3108.1,0.64833618]
[1738196655763,3.85129,3108.2,3108.1,0.00482618]
[1738196656162,3.2078,3108.2,3108.1,0.00482618]
[1738196656368,3.2078,3108.2,3108.1,0.64833618]
[1738196656760,3.2078,3108.2,3108.1,0.00482618]
[1738196658061,3.2078,3108.6,3108.1,0.00482618]
[1738196658264,3.85122,3108.6,3108.3,0.64346]
[1738196658765,3.85121,3108.6,3108.3,0.64346]
[1738196661157,3.2078,3108.6,3108.3,0.64346]
[1738196661569,3.85121,3108.6,3108.3,0.64346]
[1738196663658,3.2078,3108.6,3108.3,0.64346]
[1738196663862,3.85122,3108.6,3108.2,1.16848]
[1738196664258,3.85122,3108.6,3108.2,0.525]
[1738196664465,3.2078,3108.6,3108.3,0.64346]
[1738196664769,3.85121,3108.6,3108.2,0.525]
[1738196664964,3.2078,3108.6,3108.4,0.64344]
[1738196665169,3.2078,3108.6,3108.5,0.64342]
[1738196665667,3.2078,3109.1,3109.0,0.64332]
[1738196672974,3.2078,3109.1,3108.6,2.67626]
[1738196672975,0.64335,3108.9,3108.7,0.64337]
[1738196673274,3.2078,3109.1,3108.6,1.0678]
[1738196673575,2.66382406,3108.9,3108.2,0.525]
[1738196673779,2.66382406,3108.9,3108.2,1.0252]
[1738196673971,0.64349,3108.2,3108.1,0.00482618]
[1738196674472,20.08219,3108.2,3108.1,0.00482618]
[1738196675572,0.6436,3107.7,3107.3,0.64366]
[1738196675770,0.64363,3107.6,3107.2,0.5186]
[1738196675971,2.66382406,3107.8,3107.2,0.5186]
[1738196676170,0.64367,3107.4,3107.1,3.2078]
[1738196676577,3.85144,3107.5,3107.1,3.2078]
[1738196676779,0.64366,3107.4,3107.1,3.2078]
[1738196678175,3.2078,3107.5,3107.1,3.2078]
[1738196678372,0.5404,3107.4,3107.1,3.2078]
[1738196678676,1.18406,3107.4,3107.1,3.2078]
[1738196680867,0.5404,3107.4,3107.1,3.2078]
[1738196681273,1.18406,3107.4,3107.1,3.2078]
[1738196681470,0.64367,3107.3,3107.1,3.2078]
[1738196681977,1.18406,3107.4,3107.1,3.2078]
[1738196682381,0.5404,3107.4,3107.1,3.2078]
[1738196682681,0.64368,3107.3,3107.1,3.2078]
[1738196682875,3.2078,3107.5,3107.1,3.2078]
[1738196683082,3.2078,3107.5,3107.4,0.64365]
[1738196683567,0.00482618,3107.6,3107.1,5.87162406]
[1738196683773,0.00482618,3107.6,3107.4,2.66382406]
[1738196683977,0.00482618,3107.6,3107.5,1.14433]
[1738196687579,0.00482618,3107.6,3107.1,5.87162406]
[1738196687879,0.64845618,3107.6,3107.3,0.64366]
[1738196689177,0.64845618,3107.6,3107.1,3.2078]
[1738196689382,0.64845618,3107.6,3107.4,0.64365]
[1738196689879,0.00482618,3107.6,3107.1,3.2078]
[1738196690081,0.00482618,3107.6,3107.5,0.64363]
[1738196692281,0.00482618,3107.6,3107.4,0.64364]
[1738196692483,0.00482618,3107.6,3107.1,3.2078]
[1738196692774,0.64364,3107.5,3107.2,0.64369]
[1738196692975,0.5261,3107.5,3107.4,0.64365]
[1738196693174,0.00482618,3107.6,3107.4,0.64365]
[1738196697379,0.64844618,3107.6,3107.3,0.64367]
[1738196697580,0.64364,3107.5,3107.2,0.64368]
[1738196697885,0.00482618,3107.6,3107.0,3.7495]
[1738196698176,0.00482618,3107.6,3107.4,0.64364]
[1738196698370,0.64843618,3107.6,3107.4,0.64364]
[1738196699177,0.64843618,3107.6,3107.3,0.64366]
[1738196700380,0.00482618,3107.6,3107.0,3.7495]
[1738196700582,0.64364,3107.5,3107.2,0.64368]
[1738196700971,0.64844618,3107.6,3107.4,0.64365]
[1738196701176,0.64844618,3107.6,3107.3,0.64366]
[1738196702184,0.64368,3107.3,3107.1,0.6437]
[1738196702682,0.00482618,3107.6,3107.0,3.7495]
[1738196702878,0.64363,3107.5,3107.2,0.64368]
[1738196703072,0.64845618,3107.6,3107.3,0.64366]
[1738196703275,0.64363,3107.5,3107.3,0.64366]
[1738196703988,0.64366,3107.4,3107.1,0.6437]
[1738196704185,0.64364,3107.5,3107.0,3.7495]
[1738196704379,0.64364,3107.5,3107.2,0.64368]
[1738196705189,0.64364,3107.5,3107.1,0.64371]
[1738196705391,0.64364,3107.5,3107.3,0.64366]
[1738196705588,0.64364,3107.5,3107.2,0.64368]
[1738196706087,0.64364,3107.5,3107.3,0.64367]
[1738196706792,0.64364,3107.5,3107.2,0.64368]
[1738196706982,0.64371,3107.2,3107.0,0.5417]
[1738196707185,0.64373,3107.0,3106.9,0.00482618]
[1738196707685,19.54373,3107.0,3106.9,0.00482618]
[1738196709287,24.88273,3107.0,3106.9,0.00482618]
[1738196709594,24.239,3107.0,3105.8,2.66382406]
[1738196709785,3.2078,3106.9,3106.4,0.64386]
[1738196709988,0.64379,3106.8,3106.4,0.64386]
[1738196710190,3.2078,3106.9,3106.4,0.64386]
[1738196710494,0.64381,3106.7,3106.3,0.64869618]
[1738196710690,0.64385,3106.5,3106.3,0.00482618]
[1738196710887,0.64383,3106.6,3106.3,0.64870618]
[1738196711086,0.64383,3106.6,3106.3,0.00482618]
[1738196711496,0.5253,3106.8,3106.3,0.00482618]
[1738196711690,0.64386,3106.4,3106.3,0.00482618]
[1738196712093,1.64996,3106.4,3106.3,0.00482618]
[1738196713197,1.14936,3106.4,3106.3,0.00482618]
[1738196714897,0.5055,3106.4,3106.3,0.00482618]
[1738196715198,0.64386,3106.4,3106.3,0.00482618]
[1738196724289,19.54386,3106.4,3106.3,0.00482618]
[1738196725505,0.64404,3105.6,3105.3,2.19419]
[1738196725696,0.64404,3105.6,3105.3,1.5501]
[1738196726303,0.64405,3105.5,3105.3,1.5501]
[1738196726704,0.64403,3105.6,3105.3,2.19419]
[1738196726914,0.64403,3105.6,3105.3,1.5501]
[1738196727297,0.64406,3105.5,3105.3,1.5501]
[1738196728305,3.2078,3105.7,3105.3,1.5501]
[1738196728510,0.64407,3105.5,3105.3,1.5501]
[1738196728807,0.64407,3105.4,3105.3,0.5093]
[1738196729007,1.15537,3105.4,3105.3,0.5093]
[1738196729210,0.6441,3105.3,3105.0,0.64414]
[1738196729504,0.6441,3105.3,3105.0,1.18494]
[1738196730306,0.64411,3105.3,3105.0,1.18494]
[1738196730510,0.5113,3105.4,3105.0,0.5408]
[1738196730809,3.85193,3105.1,3105.0,0.5408]
[1738196736106,0.64415,3105.0,3104.7,0.6442]
[1738196736707,0.64415,3105.0,3104.8,0.64419]
[1738196736905,3.2078,3105.1,3104.5,1.592]
[1738196737206,0.64423,3104.6,3104.5,1.592]
[1738196738504,0.64423,3104.6,3104.5,1.0477]
[1738196738701,22.07462406,3105.0,3104.1,1.18002]
[1738196738900,0.64426,3104.5,3104.2,0.6443]
[1738196739106,0.64428,3104.4,3104.1,2.21152]
[1738196739307,0.64428,3104.4,3104.2,0.64431]
[1738196739812,22.60252406,3105.0,3104.1,1.5672]
[1738196740010,0.64427,3104.5,3104.2,0.64431]
[1738196740307,22.60252406,3105.0,3104.1,2.21152]
[1738196740308,3.2078,3104.7,3104.1,2.21152]
[1738196740508,0.64427,3104.5,3104.2,0.64431]
[1738196741409,0.5535,3104.6,3104.2,0.64431]
[1738196741410,0.64427,3104.4,3104.2,0.64431]
[1738196741707,0.64427,3104.5,3104.2,0.64431]
[1738196742511,0.5535,3104.6,3104.2,0.64431]
[1738196742810,0.64428,3104.4,3104.2,0.64431]
[1738196743006,0.64428,3104.4,3104.1,1.5672]
[1738196743206,0.64428,3104.4,3104.1,2.21153]
[1738196744313,0.64426,3104.5,3104.2,0.6443]
[1738196744613,0.5535,3104.6,3104.2,0.6443]
[1738196744812,0.64426,3104.5,3104.2,0.6443]
[1738196745517,0.64428,3104.4,3104.2,0.6443]
[1738196745814,0.64425,3104.5,3104.1,2.21152]
[1738196746017,0.5535,3104.6,3104.1,1.5672]
[1738196746315,0.6443,3104.3,3104.1,1.5672]
[1738196746514,0.64429,3104.4,3104.1,2.21153]
[1738196746712,0.64429,3104.4,3104.2,0.64431]
[1738196747212,0.6443,3104.3,3104.1,1.5672]
[1738196747613,0.5535,3104.6,3104.1,1.5672]
[1738196748408,0.64432,3104.2,3104.1,1.0315]
[1738196749111,0.64432,3104.2,3104.1,0.5117]
[1738196749313,3.2078,3104.3,3102.8,3.46054201]
[1738196749511,0.64454,3103.1,3103.0,1.0112]
[1738196749719,5.87162406,3103.2,3102.4,3.2078]
[1738196749917,0.5329,3103.1,3102.4,3.2078]
[1738196750122,2.66382406,3102.9,3102.4,3.2078]
[1738196750326,2.66382406,3102.9,3102.4,3.85248]
[1738196750517,2.66382406,3102.9,3102.4,3.2078]
[1738196750817,2.66382406,3102.9,3102.3,1.0229]
[1738196751117,1.17746,3103.1,3102.4,3.2078]
[1738196751317,3.2078,3102.8,3102.2,2.66382406]
[1738196751520,3.2078,3102.8,3102.7,0.64463]
[1738196751725,24.77162406,3103.2,3102.7,0.64463]
[1738196751924,0.64455,3103.1,3102.7,0.64463]
[1738196752119,24.77162406,3103.2,3102.4,3.2078]
[1738196752327,0.64456,3103.1,3102.4,3.2078]
[1738196752617,3.85241,3102.8,3102.4,0.64468]
[1738196752822,3.2078,3102.8,3102.3,1.5719]
[1738196753220,0.64455,3103.1,3102.3,1.5719]
[1738196753417,0.64456,3103.1,3102.6,0.64464]
[1738196753616,0.64459,3102.9,3102.4,0.64469]
[1738196753816,0.64457,3103.0,3102.6,0.64464]
[1738196754322,0.64454,3103.1,3102.4,0.64467]
[1738196754517,0.64461,3102.8,3102.4,0.64467]
[1738196754720,24.77162406,3103.2,3102.3,1.5719]
[1738196755022,3.2078,3102.4,3102.3,0.5413]
[1738196755223,3.2078,3102.4,3099.6,7.71752957]
[1738196755224,0.64492,3101.4,3100.8,0.64502]
[1738196755521,2.66382406,3100.9,3100.0,3.0]
[1738196755726,3.2078,3101.0,3100.3,0.5534]
[1738196755918,18.9,3100.8,3100.7,3.85284]
[1738196756117,18.9,3100.8,3100.5,2.66382406]
[1738196756118,0.00483402,3101.4,3100.5,2.66382406]
[1738196756316,0.00483402,3101.4,3101.1,3.2078]
[1738196756521,0.00483402,3101.4,3101.3,0.64492]
[1738196757323,0.00483402,3101.4,3101.0,1.577]
[1738196757523,0.00483402,3101.4,3101.3,0.64492]
[1738196758525,0.00483402,3101.4,3101.2,0.64493]
[1738196758719,0.00483402,3101.4,3101.0,1.577]
[1738196759223,0.00483402,3101.4,3101.2,0.64493]
[1738196759424,0.00483402,3101.4,3101.0,1.577]
[1738196759626,0.00483402,3101.4,3101.2,0.64493]
[1738196759829,0.00483402,3101.4,3101.1,0.64495]
[1738196760226,0.00483402,3101.4,3101.1,0.64496]
[1738196760525,0.00483402,3101.4,3101.2,0.64494]
[1738196760726,0.00483402,3101.4,3101.1,0.64496]
[1738196761028,0.64974402,3101.4,3101.0,1.577]
[1738196761830,0.64974402,3101.4,3101.0,1.70937]
[1738196762018,3.85754402,3101.4,3101.0,0.511]
[1738196762223,3.85753402,3101.4,3100.9,0.64499]
[1738196762423,3.21263402,3101.4,3100.9,0.64499]
[1738196762618,0.64492,3101.3,3100.7,0.5368]
[1738196762924,0.64492,3101.3,3100.8,0.64501]
[1738196763127,0.64494,3101.2,3100.8,0.64501]
[1738196763329,0.64493,3101.3,3100.8,0.64501]
[1738196764231,0.64495,3101.2,3100.7,0.64503]
[1738196764528,3.21263402,3101.4,3100.4,0.5368]
[1738196764728,3.21263402,3101.4,3101.2,0.64493]
[1738196764929,3.21263402,3101.4,3100.6,5.87162406]
[1738196765123,3.21263402,3101.4,3101.3,0.64492]
[1738196765427,0.00483402,3101.4,3101.3,0.64492]
[1738196765623,0.00483402,3101.4,3101.3,2.22502]
[1738196765827,18.9,3102.0,3101.3,7.22502]
[1738196766126,5.87162406,3102.4,3101.4,3.2078]
[1738196766331,3.2078,3101.6,3101.3,0.5551]
[1738196766531,0.64492,3101.3,3101.0,0.64498]
[1738196766823,0.64491,3101.4,3101.0,0.64497]
[1738196767029,3.74135808,3101.5,3100.9,3.2078]
[1738196767229,0.52763402,3101.5,3101.4,0.6449]
[1738196767429,0.52763402,3101.5,3100.9,3.2078]
[1738196768028,18.9,3101.4,3101.3,0.6449]
[1738196769930,0.00483402,3101.5,3100.8,0.00483402]
[1738196770234,3.2078,3101.0,3100.8,0.64985402]
[1738196770430,3.2078,3101.0,3100.9,0.645]
[1738196771038,3.2078,3101.0,3100.8,0.00483402]
[1738196771241,3.2078,3101.0,3100.9,0.645]
[1738196771535,3.2078,3101.0,3100.8,0.64984402]
[1738196771732,3.2078,3101.0,3100.8,0.54693402]
[1738196771941,2.66865808,3101.5,3100.9,0.645]
[1738196772128,1.15102,3101.4,3100.8,0.54693402]
[1738196772336,18.9,3101.3,3100.8,0.54693402]
[1738196772637,18.9,3101.3,3101.0,0.64497]
[1738196773642,18.9,3101.3,3100.8,0.54693402]
[1738196773842,19.54494,3101.3,3100.9,0.64498]
[1738196774040,18.9,3101.3,3100.8,0.54693402]
[1738196774240,18.9,3101.3,3100.9,0.645]
[1738196774436,18.9,3101.3,3100.8,0.54693402]
[1738196774642,18.9,3101.3,3101.1,0.64495]
[1738196775340,5.339,3101.2,3101.1,0.64495]
[1738196775543,18.9,3101.3,3101.1,0.64495]
[1738196776337,18.9,3101.3,3101.0,0.64497]
[1738196776941,18.9,3101.3,3101.1,0.64495]
[1738196777639,18.9,3101.3,3101.2,0.64494]
[1738196777843,3.21263402,3101.5,3101.2,0.64494]
[1738196778143,0.00483402,3101.5,3101.4,0.6449]
[1738196780135,0.00483402,3101.5,3101.4,1.1839]
[1738196781444,3.2078,3102.4,3102.2,0.64473]
[1738196781840,18.9,3102.5,3101.8,2.66382406]
[1738196782038,0.6447,3102.4,3102.1,0.64474]
[1738196782245,3.2078,3102.4,3101.6,4.81993]
[1738196782445,3.2078,3102.4,3102.2,0.64472]
[1738196782646,0.00483402,3102.3,3102.2,0.64472]
[1738196783034,0.00483402,3102.3,3101.6,3.2078]
[1738196783241,0.64476,3102.1,3101.8,0.6448]
[1738196783543,0.00483402,3102.3,3101.4,0.539]
[1738196783748,0.64955402,3102.3,3102.1,0.64474]
[1738196783946,0.64475,3102.1,3101.5,0.64488]
[1738196784242,0.64474,3102.2,3102.0,0.64477]
[1738196784545,0.00483402,3102.3,3102.2,0.64473]
[1738196791644,0.64954402,3102.3,3102.1,0.64474]
[1738196792046,0.00483402,3102.3,3102.1,0.64474]
[1738196792343,0.00483402,3102.3,3102.0,1.0936]
[1738196792544,0.64954402,3102.3,3102.1,0.64474]
[1738196792746,0.00483402,3102.3,3101.8,3.2078]
[1738196792954,0.5293,3102.2,3101.8,3.2078]
[1738196793250,1.14926,3102.1,3101.9,0.64479]
[1738196793642,0.5045,3102.1,3101.8,3.2078]
[1738196793845,0.64479,3101.9,3101.8,3.2078]
[1738196794252,6.87882406,3102.1,3101.3,4.2895]
[1738196794461,0.64488,3101.5,3101.3,0.64491]
[1738196794654,0.64493,3101.3,3101.1,0.64495]
[1738196794861,0.64493,3101.3,3100.9,3.2078]
[1738196794862,0.64494,3101.2,3100.9,3.85278]
[1738196795051,1.0432,3101.4,3100.9,3.2078]
[1738196795347,0.64492,3101.3,3101.1,0.64495]
[1738196795552,1.0432,3101.4,3100.9,3.2078]
[1738196795755,1.68811,3101.4,3101.1,0.64494]
[1738196795944,1.68811,3101.4,3101.2,0.64493]
[1738196796144,1.0432,3101.4,3101.2,0.64493]
[1738196796350,1.0432,3101.4,3101.3,0.64492]
[1738196796755,1.0432,3101.4,3101.2,0.64492]
[1738196796957,1.0432,3101.4,3101.3,0.64492]
[1738196797650,3.85267,3101.6,3100.9,3.2078]
[1738196797855,0.5538,3101.5,3101.4,0.64489]
[1738196800060,0.5538,3101.5,3101.2,0.64494]
[1738196800061,0.64491,3101.4,3101.2,0.64494]
[1738196800356,0.5538,3101.5,3100.9,3.2078]
[1738196800753,1.19869,3101.5,3100.9,3.2078]
[1738196800953,1.19869,3101.5,3101.4,0.6449]